fUST/lending_fUST_20240820
["ID","MTS","AMOUNT","RATE_DAILY","PERIOD"]
[335360815,1724159444747,-500.0,0.00018356,2]
[335360816,1724159444757,-932.56,0.00018356,2]
[335360817,1724159444768,-500.0,0.00018356,2]
[335360818,1724159444779,-500.0,0.00018356,2]
[335360819,1724159444789,-500.0,0.00018356,2]
[335360820,1724159444800,-500.0,0.00018356,2]
[335360821,1724159444810,-500.0,0.00018356,2]
[335360822,1724159444823,-2356.88,0.00018356,2]
[335360823,1724159444834,-500.0,0.00018356,2]
[335360824,1724159444844,-500.0,0.00018356,2]
[335360825,1724159444855,-540.01,0.00018356,2]
[335360826,1724159444866,-500.0,0.00018356,2]
[335360827,1724159444877,-4066.04,0.00018356,2]
[335360828,1724159444888,-500.0,0.00018356,2]
[335360829,1724159444898,-539.52,0.00018356,2]
[335360830,1724159444909,-335.71629779,0.00018356,2]
[335360831,1724159444920,-668.38,0.00018356,2]
[335360832,1724159444930,-952.38,0.00018356,2]
[335360833,1724159444941,-206.0847449,0.00018356,2]
[335360834,1724159444952,-708.67,0.00018356,2]
[335360835,1724159444963,-500.0,0.00018356,2]
[335360836,1724159444973,-796.39,0.00018356,2]
[335360837,1724159444983,-500.0,0.00018356,2]
[335360838,1724159444994,-153.0,0.00018356,2]
[335360839,1724159445004,-546.05318971,0.00018366,2]
[335360840,1724159445015,-2000.0,0.00018371,2]
[335360841,1724159445026,-800.0,0.00018387,2]
[335360842,1724159445036,-1400.0,0.000184,2]
[335360843,1724159445047,-739.78799896,0.000184,2]
[335360844,1724159445058,-160.0,0.00018411,4]
[335360845,1724159445213,-160.0,0.00018411,5]
[335360846,1724159445226,-160.0,0.00018411,5]
[335360847,1724159445236,-500.0,0.00018416,2]
[335360848,1724159445245,-500.0,0.00018417,2]
[335360849,1724159445255,-356.2,0.0001843,2]
[335360850,1724159445264,-160.7,0.0001843,2]
[335360851,1724159445274,-1400.0,0.00018452,2]
[335360852,1724159445284,-500.0,0.00018454,2]
[335360853,1724159445293,-503.32049717,0.00018482,2]
[335360854,1724159445302,-500.0,0.00018518,2]
[335360855,1724159445313,-476.56151677,0.00018522,2]
[335360856,1724159445322,-800.0,0.00018526,2]
[335360858,1724159445332,-500.0,0.00018608,2]
[335360860,1724159445342,-704.48,0.0001863,2]
[335360862,1724159445351,-1211.22,0.0001863,2]
[335360864,1724159445360,-500.0,0.0001863,2]
[335360866,1724159445371,-567.02,0.0001863,2]
[335360868,1724159445380,-693.12,0.0001863,2]
[335360870,1724159445389,-500.0,0.0001863,2]
[335360873,1724159445398,-500.0,0.0001863,2]
[335360875,1724159445408,-1361.9,0.0001863,2]
[335360877,1724159445417,-1584.02368528,0.0001863,2]
[335360878,1724159445427,-500.0,0.0001863,2]
[335360880,1724159445437,-1429.79,0.0001863,2]
[335360882,1724159445449,-844.91,0.0001863,2]
[335360885,1724159445459,-500.0,0.0001863,2]
[335360887,1724159445468,-932.56,0.0001863,2]
[335360888,1724159445478,-500.0,0.0001863,2]
[335360890,1724159445488,-500.0,0.0001863,2]
[335360892,1724159445499,-500.0,0.0001863,2]
[335360895,1724159445510,-500.0,0.0001863,2]
[335360897,1724159445519,-500.0,0.0001863,2]
[335360899,1724159445531,-2356.88,0.0001863,2]
[335360901,1724159445541,-500.0,0.0001863,2]
[335360903,1724159445551,-500.0,0.0001863,2]
[335360905,1724159445560,-540.01,0.0001863,2]
[335360907,1724159445571,-500.0,0.0001863,2]
[335360909,1724159445580,-4066.04,0.0001863,2]
[335360911,1724159445589,-500.0,0.0001863,2]
[335360913,1724159445599,-539.52,0.0001863,2]
[335360915,1724159445613,-668.38,0.0001863,2]
[335360917,1724159445624,-952.38,0.0001863,2]
[335360919,1724159445633,-708.67,0.0001863,2]
[335360921,1724159445643,-500.0,0.0001863,2]
[335360924,1724159445654,-796.39,0.0001863,2]
[335360926,1724159445664,-500.0,0.0001863,2]
[335360928,1724159445674,-800.0,0.00018652,2]
[335360930,1724159445686,-1400.0,0.00018669,2]
[335360932,1724159445696,-300.0,0.000187,7]
[335360934,1724159445706,-500.0,0.00018714,2]
[335360936,1724159445715,-800.0,0.00018761,2]
[335360938,1724159445725,-500.0,0.00018766,2]
[335360940,1724159445737,-500.0,0.00018802,2]
[335360942,1724159445747,-356.2,0.00018829,2]
[335360944,1724159445757,-160.7,0.00018829,2]
[335360946,1724159445766,-2000.0,0.00018843,2]
[335360948,1724159445777,-500.0,0.0001885,2]
[335360950,1724159445786,-2000.0,0.00018854,2]
[335360952,1724159445796,-1400.0,0.00018865,2]
[335360954,1724159445806,-500.0,0.00018886,2]
[335360956,1724159445817,-603.0,0.000189,2]
[335360959,1724159445827,-704.48,0.00018904,2]
[335360962,1724159445836,-1211.22,0.00018904,2]
[335360964,1724159445849,-500.0,0.00018904,2]
[335360966,1724159445860,-567.02,0.00018904,2]
[335360968,1724159445869,-693.12,0.00018904,2]
[335360970,1724159445879,-500.0,0.00018904,2]
[335360971,1724159445888,-500.0,0.00018904,2]
[335360972,1724159445898,-1361.9,0.00018904,2]
[335360973,1724159445906,-500.0,0.00018904,2]
[335360974,1724159445916,-1429.79,0.00018904,2]
[335360976,1724159445926,-844.91,0.00018904,2]
[335360978,1724159445935,-500.0,0.00018904,2]
[335360980,1724159445945,-932.56,0.00018904,2]
[335360982,1724159445955,-500.0,0.00018904,2]
[335360984,1724159445965,-500.0,0.00018904,2]
[335360986,1724159445974,-298.01769894,0.00018904,2]
[335360988,1724159445984,-500.0,0.00018904,2]
[335360990,1724159445994,-500.0,0.00018904,2]
[335360992,1724159446004,-2356.88,0.00018904,2]
[335360994,1724159446014,-500.0,0.00018904,2]
[335360996,1724159446024,-578.91004952,0.00018904,2]
[335360998,1724159446034,-540.01,0.00018904,2]
[335361000,1724159446044,-500.0,0.00018904,2]
[335361002,1724159446054,-4066.04,0.00018904,2]
[335361004,1724159446064,-500.0,0.00018904,2]
[335361006,1724159446073,-539.52,0.00018904,2]
[335361007,1724159446084,-668.38,0.00018904,2]
[335361008,1724159446094,-952.38,0.00018904,2]
[335361009,1724159446104,-708.67,0.00018904,2]
[335361010,1724159446115,-500.0,0.00018904,2]
[335361011,1724159446124,-796.39,0.00018904,2]
[335361012,1724159446134,-500.0,0.00018904,2]
[335361013,1724159446143,-1400.0,0.00018922,2]
[335361014,1724159446153,-800.0,0.00018931,2]
[335361015,1724159446164,-800.0,0.00018943,2]
[335361016,1724159446174,-1400.0,0.00018991,2]
[335361017,1724159446184,-1000.0,0.00019,19]
[335361018,1724159446193,-155.12080504,0.00019,2]
[335361019,1724159446204,-4382.84436898,0.00019,2]
[335361020,1724159446213,-7485.58166603,0.00019,2]
[335361021,1724159446224,-2000.0,0.0001902,2]
[335361022,1724159446234,-2000.0,0.00019035,2]
[335361023,1724159446245,-1400.0,0.00019036,2]
[335361024,1724159446256,-500.0,0.00019054,2]
[335361025,1724159446267,-800.0,0.00019069,2]
[335361026,1724159446278,-1400.0,0.00019092,2]
[335361027,1724159446289,-186.56971264,0.000191,2]
[335361028,1724159446299,-500.0,0.0001911,2]
[335361029,1724159446310,-500.0,0.00019111,2]
[335361030,1724159446321,-1400.0,0.00019119,2]
[335361031,1724159446332,-1400.0,0.00019137,2]
[335361032,1724159446342,-2000.0,0.00019141,2]
[335361033,1724159446353,-151.0,0.00019166,2]
[335361034,1724159446365,-151.0,0.00019166,2]
[335361035,1724159446377,-203.728254,0.00019166,2]
[335361036,1724159446388,-151.0,0.00019166,2]
[335361037,1724159446399,-2000.0,0.00019177,2]
[335361038,1724159446409,-500.0,0.00019178,2]
[335361039,1724159446420,-500.0,0.00019178,2]
[335361040,1724159446430,-236.46170231,0.00019178,2]
[335361041,1724159446440,-704.48,0.00019178,2]
[335361042,1724159446450,-1211.22,0.00019178,2]
[335361043,1724159446461,-500.0,0.00019178,2]
[335361044,1724159446471,-567.02,0.00019178,2]
[335361045,1724159446481,-693.12,0.00019178,2]
[335361046,1724159446491,-500.0,0.00019178,2]
[335361047,1724159446502,-500.0,0.00019178,2]
[335361048,1724159446513,-1361.9,0.00019178,2]
[335361049,1724159446522,-151.0,0.00019178,2]
[335361050,1724159446533,-500.0,0.00019178,2]
[335361051,1724159446543,-1429.79,0.00019178,2]
[335361052,1724159446553,-844.91,0.00019178,2]
[335361053,1724159446564,-500.0,0.00019178,2]
[335361054,1724159446574,-932.56,0.00019178,2]
[335361055,1724159446584,-500.0,0.00019178,2]
[335361056,1724159446594,-500.0,0.00019178,2]
[335361057,1724159446607,-176.183414,0.00019178,2]
[335361058,1724159446619,-176.183414,0.00019178,2]
[335361059,1724159446629,-297.32166584,0.00019178,2]
[335361060,1724159446639,-500.0,0.00019178,2]
[335361061,1724159446648,-2356.88,0.00019178,2]
[335361062,1724159446659,-619.64679676,0.00019178,2]
[335361063,1724159446668,-540.01,0.00019178,2]
[335361064,1724159446678,-500.0,0.00019178,2]
[335361065,1724159446690,-4066.04,0.00019178,2]
[335361066,1724159446699,-500.0,0.00019178,2]
[335361067,1724159446708,-539.52,0.00019178,2]
[335361068,1724159446718,-668.38,0.00019178,2]
[335361069,1724159446729,-952.38,0.00019178,2]
[335361070,1724159446741,-708.67,0.00019178,2]
[335361071,1724159446753,-500.0,0.00019178,2]
[335361072,1724159446763,-796.39,0.00019178,2]
[335361073,1724159446775,-500.0,0.00019178,2]
[335361074,1724159446786,-278.246116,0.00019178,2]
[335361075,1724159446797,-170.951421,0.00019178,2]
[335361076,1724159446810,-251.0,0.00019178,2]
[335361077,1724159446821,-168.370308,0.00019178,2]
[335361078,1724159446832,-151.0,0.00019178,2]
[335361079,1724159446844,-422.03,0.000192,2]
[335361080,1724159446855,-65998.37514567,0.000192,2]
[335361081,1724159446992,-500.0,0.00016438,2]
[335361082,1724159447002,-500.0,0.00016438,2]
[335361083,1724159447013,-562.61799133,0.00016438,2]
[335361084,1724159447022,-421.16147632,0.00016712,2]
[335361085,1724159447031,-10104.44485433,0.000192,2]
[335361086,1724159447040,-151.0,0.000192,2]
[335361087,1724159447049,-151.0,0.000192,2]
[335361088,1724159447059,-151.0,0.000192,2]
[335361089,1724159447070,-151.0,0.000192,2]
[335361090,1724159447080,-151.0,0.000192,2]
[335361091,1724159447090,-151.0,0.000192,2]
[335361092,1724159447100,-151.0,0.000192,2]
[335361093,1724159447110,-6399.968,0.000192,2]
[335361094,1724159447120,-6399.968,0.000192,2]
[335361095,1724159447130,-151.0,0.000192,2]
[335361096,1724159447140,-151.0,0.000192,2]
[335361097,1724159447150,-151.0,0.000192,2]
[335361098,1724159447161,-151.0,0.000192,2]
[335361099,1724159447170,-151.0,0.000192,2]
[335361100,1724159447180,-151.0,0.000192,2]
[335361101,1724159447190,-151.0,0.000192,2]
[335361102,1724159447200,-356.2,0.00019227,2]
[335361103,1724159447210,-160.7,0.00019227,2]
[335361104,1724159447222,-800.0,0.00019246,2]
[335361105,1724159447231,-800.0,0.00019254,2]
[335361106,1724159447240,-800.0,0.00019276,2]
[335361107,1724159447250,-800.0,0.00019287,2]
[335361108,1724159447259,-158.76411183,0.00019302,2]
[335361109,1724159447269,-2000.0,0.00019367,2]
[335361110,1724159447278,-499.08910352,0.00019415,2]
[335361111,1724159447287,-800.0,0.00019426,2]
[335361112,1724159447297,-800.0,0.00019445,2]
[335361113,1724159447307,-465.57807584,0.00019448,2]
[335361114,1724159447317,-1400.0,0.00019449,2]
[335361115,1724159447327,-704.48,0.00019452,2]
[335361116,1724159447337,-1211.22,0.00019452,2]
[335361117,1724159447347,-500.0,0.00019452,2]
[335361118,1724159447356,-567.02,0.00019452,2]
[335361119,1724159447367,-693.12,0.00019452,2]
[335361120,1724159447377,-500.0,0.00019452,2]
[335361121,1724159447386,-500.0,0.00019452,2]
[335361122,1724159447399,-1361.9,0.00019452,2]
[335361123,1724159447408,-1429.79,0.00019452,2]
[335361124,1724159447417,-844.91,0.00019452,2]
[335361125,1724159447429,-500.0,0.00019452,2]
[335361126,1724159447439,-932.56,0.00019452,2]
[335361127,1724159447449,-500.0,0.00019452,2]
[335361128,1724159447459,-500.0,0.00019452,2]
[335361129,1724159447470,-500.0,0.00019452,2]
[335361130,1724159447482,-2356.88,0.00019452,2]
[335361131,1724159447493,-540.01,0.00019452,2]
[335361132,1724159447504,-500.0,0.00019452,2]
[335361133,1724159447516,-4066.04,0.00019452,2]
[335361134,1724159447526,-500.0,0.00019452,2]
[335361135,1724159447537,-539.52,0.00019452,2]
[335361136,1724159447548,-668.38,0.00019452,2]
[335361137,1724159447559,-952.38,0.00019452,2]
[335361138,1724159447572,-708.67,0.00019452,2]
[335361139,1724159447582,-500.0,0.00019452,2]
[335361140,1724159447594,-796.39,0.00019452,2]
[335361141,1724159447604,-500.0,0.00019452,2]
[335361142,1724159447618,-800.0,0.0001948,2]
[335361143,1724159447629,-500.0,0.00019496,2]
[335361144,1724159447639,-2000.0,0.00019496,2]
[335361145,1724159447651,-2000.0,0.00019516,2]
[335361146,1724159447660,-500.0,0.00019539,2]
[335361147,1724159447671,-500.0,0.00019545,2]
[335361148,1724159447684,-800.0,0.00019597,2]
[335361149,1724159447694,-500.0,0.00019598,2]
[335361150,1724159447705,-356.2,0.00019626,2]
[335361151,1724159447715,-160.7,0.00019626,2]
[335361152,1724159447726,-800.0,0.00019644,2]
[335361153,1724159447737,-800.0,0.00019653,2]
[335361154,1724159447747,-2000.0,0.00019688,2]
[335361155,1724159447759,-500.0,0.0001971,2]
[335361156,1724159447770,-1400.0,0.00019721,2]
[335361157,1724159447781,-1400.0,0.00019725,2]
[335361158,1724159447793,-704.48,0.00019726,2]
[335361159,1724159447802,-1211.22,0.00019726,2]
[335361160,1724159447812,-500.0,0.00019726,2]
[335361161,1724159447823,-567.02,0.00019726,2]
[335361162,1724159447832,-693.12,0.00019726,2]
[335361163,1724159447844,-500.0,0.00019726,2]
[335361164,1724159447855,-500.0,0.00019726,2]
[335361165,1724159447867,-1361.9,0.00019726,2]
[335361166,1724159447879,-1429.79,0.00019726,2]
[335361167,1724159447890,-844.91,0.00019726,2]
[335361168,1724159447900,-500.0,0.00019726,2]
[335361169,1724159447910,-932.56,0.00019726,2]
[335361170,1724159447921,-500.0,0.00019726,2]
[335361171,1724159447931,-500.0,0.00019726,2]
[335361172,1724159447943,-500.0,0.00019726,2]
[335361173,1724159447954,-2356.88,0.00019726,2]
[335361174,1724159447967,-540.01,0.00019726,2]
[335361175,1724159447981,-500.0,0.00019726,2]
[335361176,1724159447992,-4066.04,0.00019726,2]
[335361177,1724159448003,-500.0,0.00019726,2]
[335361178,1724159448014,-539.52,0.00019726,2]
[335361179,1724159448023,-668.38,0.00019726,2]
[335361180,1724159448035,-952.38,0.00019726,2]
[335361181,1724159448046,-708.67,0.00019726,2]
[335361182,1724159448057,-500.0,0.00019726,2]
[335361183,1724159448071,-796.39,0.00019726,2]
[335361184,1724159448082,-500.0,0.00019726,2]
[335361185,1724159448093,-500.0,0.00019741,2]
[335361186,1724159448106,-2000.0,0.00019741,2]
[335361187,1724159448117,-500.0,0.00019743,2]
[335361188,1724159448127,-153.0,0.00019743,2]
[335361189,1724159448137,-500.0,0.00019751,2]
[335361190,1724159448147,-500.0,0.00019795,2]
[335361191,1724159448157,-1932.186094,0.000198,2]
[335361192,1724159448167,-800.0,0.0001982,2]
[335361193,1724159448177,-151.0,0.0001983,2]
[335361194,1724159448187,-600.0,0.00019846,2]
[335361195,1724159448196,-2000.0,0.00019887,2]
[335361196,1724159448206,-2000.0,0.00019891,2]
[335361197,1724159448216,-800.0,0.000199,2]
[335361198,1724159448226,-500.0,0.00019904,2]
[335361199,1724159448236,-1400.0,0.0001992,2]
[335361200,1724159448246,-500.0,0.00019935,2]
[335361201,1724159448256,-500.0,0.0001996,2]
[335361202,1724159448265,-7996.89787357,0.0001999,2]
[335361203,1724159448275,-151.0,0.0001999,2]
[335361204,1724159448285,-151.0,0.0001999,2]
[335361205,1724159448295,-15648.18025876,0.0002,2]
[335361206,1724159448305,-360.81815862,0.0002,2]
[335361207,1724159448315,-8842.31671975,0.0002,2]
[335361208,1724159448325,-400.80753694,0.0002,2]
[335361209,1724159448334,-159.23515159,0.0002,2]
[335361210,1724159448343,-151.0,0.0002,2]
[335361211,1724159448353,-151.0,0.0002,2]
[335361212,1724159448363,-704.48,0.0002,2]
[335361213,1724159448373,-1211.22,0.0002,2]
[335361214,1724159448383,-460.00900199,0.0002,2]
[335361215,1724159448392,-567.02,0.0002,2]
[335361216,1724159448402,-693.12,0.0002,2]
[335361217,1724159448412,-500.0,0.0002,2]
[335361218,1724159448421,-500.0,0.0002,2]
[335361219,1724159448430,-828.80041013,0.0002,2]
[335361220,1724159448440,-1361.9,0.0002,2]
[335361221,1724159448604,-1429.79,0.0002,2]
[335361222,1724159448618,-844.91,0.0002,2]
[335361223,1724159448627,-280.69003276,0.0002,2]
[335361224,1724159448638,-932.56,0.0002,2]
[335361225,1724159448648,-500.0,0.0002,2]
[335361226,1724159448659,-500.0,0.0002,2]
[335361227,1724159448670,-172.87290309,0.0002,2]
[335361228,1724159448679,-500.0,0.0002,2]
[335361229,1724159448691,-2356.88,0.0002,2]
[335361230,1724159448701,-540.01,0.0002,2]
[335361231,1724159448712,-500.0,0.0002,2]
[335361232,1724159448723,-4066.04,0.0002,2]
[335361233,1724159448733,-500.0,0.0002,2]
[335361234,1724159448743,-539.52,0.0002,2]
[335361235,1724159448754,-668.38,0.0002,2]
[335361236,1724159448764,-952.38,0.0002,2]
[335361237,1724159448775,-708.67,0.0002,2]
[335361238,1724159448786,-500.0,0.0002,2]
[335361239,1724159448796,-224.20905614,0.0002,2]
[335361240,1724159448809,-572.18094386,0.0002,2]
[335361241,1724159448822,-4381.0,0.0002,2]
[335361242,1724159448832,-500.0,0.0002,2]
[335361243,1724159448842,-201.47246327,0.0002,2]
[335361244,1724159448951,-10.44830046,0.00012898,2]
[335361253,1724160037131,244.01680632,7.376e-05,2]
[335361254,1724160096617,404.65460675,7.376e-05,2]
[335361255,1724160096649,3620.21503602,7.376e-05,2]
[335361256,1724160098395,160.629272,7.228e-05,2]
[335361257,1724160098606,160.629272,7.249e-05,2]
[335361258,1724160098823,160.629272,7.27e-05,2]
[335361259,1724160099051,160.629272,7.291e-05,2]
[335361260,1724160099275,160.629272,7.311e-05,2]
[335361261,1724160099527,160.629272,7.332e-05,2]
[335361262,1724160099743,160.629272,7.353e-05,2]
[335361263,1724160100005,160.629272,7.374e-05,2]
[335361266,1724160118701,218.62299037,7.376e-05,2]
[335361267,1724160125302,2112.67730225,7.376e-05,2]
[335361268,1724160133682,4721.43026893,7.376e-05,2]
[335361269,1724160143078,939.08236877,7.376e-05,2]
[335361270,1724160148299,6612.12591735,7.376e-05,2]
[335361271,1724160151824,834.77416019,7.295e-05,2]
[335361274,1724160201157,2269.1336339,7.376e-05,2]
[335361275,1724160222158,4721.43026893,7.295e-05,2]
[335361276,1724160222951,1727.01655791,7.295e-05,2]
[335361277,1724160246097,999.7096617,7.295e-05,2]
[335361282,1724160332181,333.44424305,7.295e-05,2]
[335361284,1724160386931,167.0635459,7.342e-05,2]
[335361286,1724160439841,6599.0,0.00021,120]
[335361287,1724160615028,160.629272,7.297e-05,2]
[335361288,1724160615267,160.629272,7.335e-05,2]
[335361289,1724160615533,160.629272,7.373e-05,2]
[335361334,1724160632054,-300.0,7.396e-05,2]
[335361335,1724160632067,-300.0,7.396e-05,2]
[335361336,1724160632078,-24900.0,7.397e-05,2]
[335361337,1724160632088,-160.629272,7.411e-05,2]
[335361338,1724160632097,-160.629272,7.449e-05,2]
[335361339,1724160632106,-160.629272,7.487e-05,2]
[335361340,1724160632115,-160.629272,7.525e-05,2]
[335361341,1724160632124,-160.629272,7.563e-05,2]
[335361342,1724160632133,-160.629272,7.601e-05,2]
[335361343,1724160632142,-160.629272,7.639e-05,2]
[335361344,1724160632151,-4270.0190717,7.677e-05,2]
[335361345,1724160632160,-160.629272,7.677e-05,2]
[335361346,1724160632169,-192.02486573,7.81e-05,2]
[335361347,1724160632178,-811.47145884,7.954e-05,2]
[335361348,1724160632187,-420.0,8.136e-05,2]
[335361349,1724160632196,-390.0,8.136e-05,2]
[335361350,1724160632206,-303.91507343,8.521e-05,2]
[335361351,1724160632216,-1766.63770101,8.532e-05,2]
[335361352,1724160632226,-1766.63770101,8.532e-05,2]
[335361353,1724160632237,-2128.24653365,8.532e-05,2]
[335361354,1724160632247,-223.54518659,8.793e-05,2]
[335361355,1724160632259,-587.0,8.949e-05,2]
[335361356,1724160632270,-823.0,9.844e-05,2]
[335361357,1724160632281,-154.76012181,0.0001,2]
[335361358,1724160632294,-895.92966664,0.0001008,2]
[335361359,1724160632305,-9534.96937168,0.00010081,2]
[335361375,1724160638081,-303.91507343,8.019e-05,2]
[335361376,1724160638091,-1766.63770101,8.521e-05,2]
[335361377,1724160638100,-11262.15937776,0.00010081,2]
[335361378,1724160638110,-728.8710597,0.00010544,2]
[335361379,1724160638119,-404.47284307,0.00010739,2]
[335361380,1724160638128,-1152.0,0.00010829,2]
[335361381,1724160638138,-260.61,0.00010959,2]
[335361382,1724160638149,-217.18,0.00010959,2]
[335361383,1724160638159,-180.98,0.00010959,2]
[335361384,1724160638170,-150.82,0.00010959,2]
[335361385,1724160638182,-754.12,0.00010959,2]
[335361386,1724160638194,-13018.23394504,0.00011409,2]
[335361387,1724160638226,-29397.67690089,0.00011409,2]
[335361388,1724160638237,-665.53459983,0.00011409,2]
[335361389,1724160638249,-55478.02051668,0.00011712,2]
[335361390,1724160638260,-96894.1231134,0.000119,2]
[335361391,1724160638272,-1613.0,0.00011912,2]
[335361392,1724160638282,-8845.25511796,0.0001212,2]
[335361393,1724160638293,-7014.13255051,0.0001212,2]
[335361394,1724160638303,-396.27343154,0.000123,2]
[335361395,1724160638313,-9660.2899886,0.00012356,2]
[335361396,1724160638323,-7921.44686656,0.000125,2]
[335361397,1724160638335,-2166.4854483,0.00012516,2]
[335361398,1724160638346,-1500.0,0.00012551,2]
[335361399,1724160638355,-898.81779354,0.00012689,2]
[335361400,1724160638365,-2143.02877073,0.00012779,2]
[335361401,1724160638374,-1613.61724275,0.00012779,2]
[335361402,1724160638385,-817.60790766,0.00012782,2]
[335361403,1724160638395,-817.60790766,0.00012782,2]
[335361404,1724160638404,-810.66321171,0.00012782,2]
[335361405,1724160638414,-292.50625979,0.00012782,2]
[335361406,1724160638423,-154.76012181,0.00012886,2]
[335361407,1724160638433,-156.87056893,0.00012886,2]
[335361408,1724160638443,-544.06785329,0.00012898,2]
[335361409,1724160638453,-155.30732615,0.00012898,2]
[335361410,1724160638462,-4518.62256856,0.000129,2]
[335361411,1724160638471,-4518.62256853,0.000129,2]
[335361412,1724160638480,-320.30409158,0.00012934,2]
[335361413,1724160638490,-320.30409158,0.00012934,2]
[335361414,1724160638499,-413.70707529,0.00012934,2]
[335361415,1724160638509,-154.79103211,0.00012934,2]
[335361416,1724160638519,-780.13119624,0.00012934,2]
[335361417,1724160638529,-160.46171883,0.00012934,2]
[335361418,1724160638539,-188.58516866,0.00012934,2]
[335361419,1724160638549,-48447.0615567,0.00012961,2]
[335361420,1724160638559,-493.36312925,0.00012971,2]
[335361421,1724160638569,-154.76012181,0.00012971,2]
[335361422,1724160638581,-569.6147727,0.00012971,2]
[335361423,1724160638591,-200.0,0.0001298,2]
[335361424,1724160638602,-200.0,0.0001298,2]
[335361425,1724160638612,-688.74575077,0.00012985,2]
[335361426,1724160638622,-688.74575077,0.00012985,2]
[335361427,1724160638633,-471.66462758,0.00012985,2]
[335361428,1724160638642,-157.11235205,0.00012985,2]
[335361429,1724160638651,-154.76012181,0.00012989,2]
[335361430,1724160638661,-154.76012181,0.00012989,2]
[335361431,1724160638670,-174.85504165,0.00012989,2]
[335361432,1724160638680,-422.36012849,0.00012989,2]
[335361433,1724160638689,-342.6945234,0.00012989,2]
[335361434,1724160638698,-196.83090407,0.00012991,2]
[335361435,1724160638707,-1377.42710188,0.00012999,2]
[335361436,1724160638716,-521.35824671,0.00012999,2]
[335361437,1724160638726,-190.09307092,0.00013025,2]
[335361438,1724160638735,-301.56944091,0.00013051,2]
[335361439,1724160638745,-2258.0,0.00013103,2]
[335361440,1724160638755,-495.19490276,0.00013333,2]
[335361441,1724160638765,-1647.12308075,0.00013477,2]
[335361442,1724160638776,-600.93966433,0.00013477,2]
[335361443,1724160638786,-2282.67176676,0.00013477,3]
[335361444,1724160638796,-850.86713135,0.00013496,2]
[335361445,1724160638806,-154.76012181,0.00013496,2]
[335361446,1724160638815,-158.1221147,0.00013496,2]
[335361447,1724160638825,-534.91146023,0.00013497,2]
[335361448,1724160638835,-154.76012181,0.00013497,2]
[335361449,1724160638845,-210.26167047,0.00013497,2]
[335361450,1724160638857,-181.75712073,0.00013497,2]
[335361451,1724160638867,-309.52024362,0.00013497,2]
[335361452,1724160638879,-180.81152876,0.00013596,2]
[335361453,1724160638891,-48447.0615567,0.00013689,2]
[335361454,1724160638900,-500.0,0.00013698,2]
[335361455,1724160638912,-250.0,0.00013698,2]
[335361456,1724160638924,-500.0,0.00013698,2]
[335361457,1724160638934,-500.0,0.00013698,2]
[335361458,1724160638943,-500.0,0.00013698,2]
[335361459,1724160638953,-500.0,0.00013698,2]
[335361460,1724160638963,-366.25195477,0.00013698,2]
[335361461,1724160638973,-200.59230123,0.00013698,2]
[335361462,1724160638983,-500.0,0.00013698,2]
[335361463,1724160638997,-500.0,0.00013698,2]
[335361464,1724160639007,-500.0,0.00013698,2]
[335361465,1724160639016,-523.91604937,0.00013698,2]
[335361466,1724160639027,-500.0,0.00013698,2]